Cogmind - Beta 16.1 @@@ ROGUE MODE // 2026.03.04 @ 17:46:05 Player: QXander Result: Destroyed by VJ-EGU(R) with Subdweller Machine Gun Performance ------------- Evolutions (0) 0 Regions Visited (2) 400 Robots Destroyed (7) 35 Value Destroyed (208) 208 Prototype IDs (0) 0 Alien Tech Used (0) 0 Bonus (0) 0 TOTAL SCORE: 643 Bonus ------- None Cogmind --------- Core Integrity 0/250 Matter 279/300 Energy 118/250 System Corruption 0% Temperature Cool (0) Movement Walking (120) Location -10/Subcaves Parts ------- > --- POWER (1) -------- Ion Engine > --- PROPULSION (2) --- Aluminum Leg Aluminum Leg > --- UTILITY (2) ------ Heat Sink Medium Storage Unit > --- WEAPON (2) ------- Subdweller Machine Gun > --- INVENTORY (10) --- Ion Engine Aluminum Leg Small Storage Unit Light Armor Plating Scrap Shield Fragment (45) Peak State ------------ > --- POWER ------------ Light Nuclear Core > --- PROPULSION ------- Aluminum Leg Aluminum Leg > --- UTILITY ---------- Heat Sink Medium Storage Unit > --- WEAPON ----------- Particle Gun Beam Cannon > --- INVENTORY -------- Ion Engine Ion Engine Aluminum Leg Aluminum Leg Aluminum Leg Small Storage Unit Light Armor Plating Medium Laser [Rating: 10] Favorites ----------- Power Light Nuclear Core Engine Ion Engine Power Core Light Nuclear Core Propulsion Aluminum Leg Leg Aluminum Leg Utility Heat Sink Device Heat Sink Storage Medium Storage Unit Weapon Beam Cannon Energy Gun Particle Gun Energy Cannon Beam Cannon Ballistic Gun Light Assault Rifle Build | -11 -10 -10 ------- Run | Yrd Mat Sub Slots Evolved . | . . . Power . | . . . Propulsion . | . . . Utility . | . . . Weapon . | . . . Parts Attached 16 | 6 6 4 Power 3 | 1 1 1 Engine 2 | 1 . 1 Core 1 | . 1 . Reactor . | . . . Propulsion 5 | 2 1 2 Treads . | . . . Leg 5 | 2 1 2 Wheel . | . . . Hover . | . . . Flight . | . . . Utility 3 | 1 2 . Device 1 | . 1 . Storage 2 | 1 1 . Processor . | . . . Hackware . | . . . Protection . | . . . Artifact . | . . . Weapon 5 | 2 2 1 Energy Gun 2 | 1 1 . Energy Cannon 1 | . 1 . Ballistic Gun 2 | 1 . 1 Ballistic Cannon . | . . . Launcher . | . . . Special Weapon . | . . . Impact Weapon . | . . . Slashing Weapon . | . . . Piercing Weapon . | . . . Special Melee Weapon . | . . . Unidentified Prototypes . | . . . Parts Lost 5 | . . 5 Power 1 | . . 1 Propulsion 2 | . . 2 Utility . | . . . Weapon 2 | . . 2 Highest Loss Streak 3 | . . 3 To Critical Strikes . | . . . Average Backups 4 | . 4 6 Power 1 | . 1 1 Propulsion 2 | . 1 2 Utility 1 | . 1 2 Weapon . | . . . Tool/Special . | . . . Unused Backups 3 | . 1 2 Power 1 | . 1 . Propulsion 1 | . . 1 Utility 1 | . . 1 Weapon . | . . . Tool/Special . | . . . Average Slot Usage (%) 93 | . 96 88 Engine 5 | . 8 . Core 8 | . 5 13 Leg 28 | . 28 28 Device 11 | . 10 14 Storage 14 | . 14 14 Energy Gun 12 | . 14 8 Energy Cannon 11 | . 12 9 Peak Build Rating 10 | 6 10 10 Average Rating 7 | 4 8 8 On Entrance 5 | . 6 10 Avg Prop Armor Cover (%) . | . . . Naked Turns . | . . . Heaviest Build 22 | 13 22 22 Greatest Support 20 | 20 20 20 Greatest Overweight (x) 3 | 3 1 1 Average Overweight (x) . | . . . Largest Inventory Capacity 10 | 8 10 10 Average Capacity 9 | 7 9 10 Most Carried 8 | 1 8 8 Average Carried 5 | . 4 7 Final Capacity 10 | 8 10 10 Final Carried 7 | 1 7 5 Class Distribution -------------------- 57% | Mutant 42% | Scavenger-Mutant Dominant Class ---------------- Mutant | -10/Materials Scavenger-Mutant | -10/Subcaves Resources | -11 -10 -10 ----------- Run | Yrd Mat Sub Matter Collected 345 | 214 106 25 Remotely . | . . . Salvage Created 236 | . 135 101 Parts 15 | . 10 5 Haulers Intercepted . | . . . Recyclers Shooed . | . . . Parts Field Recycled . | . . . Retrieved Matter . | . . . Parts Self-Destructed 4 | . . 4 Prevented . | . . . Parts Restored . | . . . Kills | -11 -10 -10 ------- Run | Yrd Mat Sub Combat Hostiles Destroyed 6 | . 3 3 Guns 2 | . 2 . Cannons 4 | . 1 3 Classes Destroyed 5 | . 2 3 Worker 1 | . 1 . Swarmer 1 | . . 1 Grunt 3 | . 3 . Sentry 1 | . . 1 Subdweller 1 | . . 1 Best Kill Streak 2 | . 2 2 Combat Bots Only 2 | . 1 2 Max Kills in Single Turn 1 | . 1 1 Gunslinging . | . . . Exploded . | . . . Melee . | . . . Uniques/NPCs Destroyed . | . . . Combat | -11 -10 -10 -------- Run | Yrd Mat Sub Hostile Shots Fired 70 | . 16 54 Missed 21 | . 7 14 Hits 49 | . 9 40 Projectile 49 | . 9 40 Critical Strikes 2 | . . 2 Damage Taken 922 | . 109 813 Core 270 | . . 270 Absorbed by Shields . | . . . Core Remaining (%) 100 | 100 . . Volleys Fired 31 | . 11 20 Largest 2 | . 2 2 Hottest 125 | . 125 125 Shots Fired 49 | . 22 27 Gun 21 | . 11 10 Cannon 28 | . 11 17 Launcher . | . . . Special . | . . . Kinetic 3 | . . 3 Thermal 46 | . 22 24 Explosive . | . . . Electromagnetic . | . . . Robot Hit Streak 9 | . 4 9 Robot Miss Streak 2 | . 2 2 Penetration Max . | . . . Secondary Targets . | . . . Shots Hit Robots 34 | . 13 21 Core Hits 12 | . 7 5 Critical Kills . | . . . Critical Parts Destroyed . | . . . Critical Strikes 2 | . 2 . Burn 2 | . 2 . Melee Attacks . | . . . Impact . | . . . Slashing . | . . . Piercing . | . . . Sneak Attacks . | . . . Combat Hostiles . | . . . Follow-up Attacks . | . . . Damage Inflicted 494 | . 215 279 Guns 213 | . 93 120 Cannons 281 | . 122 159 Explosions . | . . . Melee . | . . . Ramming . | . . . Kinetic 42 | . . 42 Thermal 452 | . 215 237 Explosive . | . . . Electromagnetic . | . . . Impact . | . . . Slashing . | . . . Piercing . | . . . Highest Corruption . | . . . Average Corruption . | . . . Corruption Purged . | . . . Corruption Blocked . | . . . Overload Shots . | . . . Overflow Damage . | . . . Projectiles . | . . . Explosions . | . . . Melee . | . . . Knockbacks . | . . . Impact . | . . . Kinetic . | . . . Secondary . | . . . Self-Inflicted Damage . | . . . Shots . | . . . Rammed . | . . . Targets Rammed . | . . . Kicked . | . . . Crushed . | . . . Highest Temperature 125 | . 125 . Average Temperature 54 | . 54 . Received Heat Transfer 141 | . 60 81 Siege Activations . | . . . Martial Activations . | . . . Shielding Activations . | . . . Robots Disrupted . | . . . Combat Hostiles . | . . . Robots Corrupted . | . . . Combat Hostiles . | . . . Parts Fried . | . . . Impact Corruptions . | . . . Robots Melted . | . . . Combat Hostiles . | . . . Parts Melted 2 | . 1 1 Heat Transferred 1184 | . 666 518 Parts Sabotaged . | . . . Parts Stolen . | . . . Parts Stripped . | . . . Power Chain Reactions . | . . . Alert | -11 -10 -10 ------- Run | Yrd Mat Sub Maximum Alert Level . | . . . Low Security (%) 100 | 100 100 . Level 1 . | . . . Level 2 . | . . . Level 3 . | . . . Level 4 . | . . . Level 5 . | . . . High Security . | . . . Max Security . | . . . Peak Influence 35 | . 35 . Initial . | . . . Average 4 | . 5 . Influence Increases 142 | . 102 40 Destroy 0b10 Robot/C 100 | . 60 40 Destroy 0b10 Robot/NC 5 | . 5 . Destroy Leader 10 | . 10 . Successful Hack 11 | . 11 . Disable Machine 15 | . 15 . Destroy Structure 1 | . 1 . Influence Decreases 142 | . 102 40 Time Decay 142 | . 102 40 Squads Dispatched 1 | . 1 . Investigation 1 | . 1 . Extermination . | . . . Reinforcement . | . . . Assault . | . . . Garrison . | . . . Intercept . | . . . Searches Triggered . | . . . Construction Impeded . | . . . Haulers Reinforced . | . . . Active Scanning Responses . | . . . Cargo Convoy Interrupts . | . . . Stealth | -11 -10 -10 --------- Run | Yrd Mat Sub Distress Signals . | . . . Communications Jammed . | . . . Distress Signals . | . . . Times Spotted 13 | . 4 9 Peak Tracking Total 4 | . 2 4 Tactical Retreats 1 | . . 1 Traps | -11 -10 -10 ------- Run | Yrd Mat Sub Traps Triggered 1 | . 1 . Indirectly . | . . . Trap Hack Attempts . | . . . Triggered . | . . . Disarmed . | . . . Reprogrammed . | . . . Reused . | . . . Traps Extracted . | . . . Installed . | . . . Triggered . | . . . Machines | -11 -10 -10 ---------- Run | Yrd Mat Sub Machines Disabled 1 | . 1 . Max in Single Turn 1 | . 1 . Machines Repaired . | . . . Machines Dismantled . | . . . Machines Sabotaged . | . . . Overloaded Fab Kills . | . . . Hacking | -11 -10 -10 --------- Run | Yrd Mat Sub Machines Accessed 2 | . 2 . Terminals 2 | . 2 . Fabricators . | . . . Repair Stations . | . . . Recycling Units . | . . . Scanalyzers . | . . . Garrison Access . | . . . Total Hacks 9 | . 9 . Successful 4 | . 4 . Failed 5 | . 5 . Catastrophic . | . . . Database Lockouts . | . . . Manual . | . . . Terminals 9 | . 9 . Fabricators . | . . . Repair Stations . | . . . Recycling Units . | . . . Scanalyzers . | . . . Garrison Access . | . . . Terminal Hacks 4 | . 4 . Emergency Access Points 1 | . 1 . Locate Traps 1 | . 1 . Security Status 1 | . 1 . Surveillance Status 1 | . 1 . Fabricator Hacks . | . . . Repair Station Hacks . | . . . Recycling Unit Hacks . | . . . Scanalyzer . | . . . Garrison Access Hacks . | . . . Unauthorized Hacks . | . . . Terminals . | . . . Fabricators . | . . . Repair Stations . | . . . Recycling Units . | . . . Scanalyzers . | . . . Garrison Access . | . . . Data Cores Recovered . | . . . Used . | . . . Hacking Detections 2 | . 2 . Full Trace Events . | . . . Feedback Events . | . . . Feedback Blocked . | . . . Robot Schematics Acquired . | . . . Robots Built . | . . . Authchips . | . . . Time . | . . . Total Robot Build Rating . | . . . Part Schematics Acquired . | . . . Parts Built . | . . . Authchips . | . . . Time . | . . . Total Part Build Rating . | . . . Part Studies Acquired . | . . . Parts Repaired . | . . . Time . | . . . Parts Recycled . | . . . Recycled Matter . | . . . Retrieved Matter . | . . . Retrieved Components . | . . . Parts Scanalyzed . | . . . Part Schematics Acquired . | . . . Parts Damaged . | . . . Bothacking | -11 -10 -10 ------------ Run | Yrd Mat Sub Used RIF Installer . | . . . Robots Hacked . | . . . Non-combat . | . . . Combat . | . . . Robot Hacks Applied . | . . . Relay Couplers Released . | . . . Fabnet Peak Effective % . | . . . Robots Rewired . | . . . Allies Hacked . | . . . Hacks Repelled . | . . . Allies | -11 -10 -10 -------- Run | Yrd Mat Sub Total Allies . | . . . Largest Group . | . . . Highest-Rated Group . | . . . Highest-Rated Ally . | . . . Total Orders . | . . . Ally Attacks . | . . . Total Damage . | . . . Kills . | . . . Allies Corrupted . | . . . Allies Melted . | . . . Intel | -11 -10 -10 ------- Run | Yrd Mat Sub Active Infowar (turns) . | . . . Robot Analysis Total . | . . . Derelict Logs Recovered . | . . . Drone Launches . | . . . Drone Recoveries . | . . . Exploration | -11 -10 -10 ------------- Run | Yrd Mat Sub Turns Passed 916 | 97 534 285 Spaces Moved 502 | 69 282 151 Core 9 | 9 . . Treads . | . . . Legs 493 | 60 282 151 Wheels . | . . . Hover . | . . . Flight . | . . . Fastest Speed 50 | 50 120 120 Average Speed 148 | 127 151 153 Slowest Speed 200 | 200 190 190 Overloaded Moves . | . . . Propulsion Burnouts . | . . . Robots Hopped . | . . . Potential Cave-ins . | . . . Cave-ins Triggered . | . . . Exploration Rate (%) 18 | 4 38 12 Regions Visited 2 Branch Regions 1 Pre-discovered Areas . | . . . Known Exits Taken . | . . . Unknown Exits Taken 2 | 1 1 . Scrap Searched . | . . . Spaces Dug . | . . . Terrain Destroyed . | . . . Melee . | . . . Projectile . | . . . AOE . | . . . Terrain Rammed . | . . . Walls Destroyed . | . . . Machines Disabled . | . . . Actions | -11 -10 -10 --------- Run | Yrd Mat Sub Total 617 | 75 366 176 Wait 58 | . 58 . Move 500 | 68 281 151 Hop . | . . . Pick Up 8 | 1 6 1 Fast Attach 8 | 6 1 1 Attach 3 | . . 3 Detach . | . . . Swap 5 | . 5 . Drop 4 | . 4 . Fire 31 | . 11 20 Melee . | . . . Ram . | . . . Kick . | . . . Crush . | . . . Escape Stasis . | . . . Rewire . | . . . Trap . | . . . Miscellaneous . | . . . Route ------- -11/Scrapyard -10/Materials (discovered 2 exits: [*Min] / [*Sub]) -10/Subcaves History --------- Turn | Location | Event 14 | -11/Scrapyard | Discovered new exit (range 15) 98 | -11/Scrapyard | Entered Materials 285 | -10/Materials | Discovered new exit (range 15) 305 | -10/Materials | Build established: Mutant 613 | -10/Materials | Discovered new exit (range 7) 632 | -10/Materials | Entered Subcaves 704 | -10/Subcaves | Build established: Scavenger-Mutant 830 | -10/Subcaves | Core integrity fell below 50% 914 | -10/Subcaves | Core integrity fell below 20% 917 | -10/Subcaves | Destroyed by VJ-EGU(R) with Subdweller Machine Gun Last Messages --------------- 00674_ Lgt. Treads fries itself beyond repair. 00674_ Lgt. Assault Rifle fries itself beyond repair. 00676_ Lgt. Treads fries itself beyond repair. 00714_ Sub. Monowheel melted. 00714_ 25-DTX(R) destroyed. 00723_ Acquired Scrap Shield Fragment. 00736_ Subatomizers dissect the Sub. Power Source. 00790_ Particle Gun destroyed. 00813_ Beam Cannon destroyed. 00828_ Subatomizers dissect the Sub. Power Source. 00905_ Aluminum Leg destroyed. 00907_ Acquired 10 matter. 00907_ Lgt. Nuclear Core destroyed. 00908_ Acquired 10 matter. 00909_ Acquired 5 matter. 00910_ Acquired Sub. Machine Gun. 1Z-013(R) emerges from concealment. Map ----- +----------------------------------------------------+ | ??????????????## ##?????????????????? | | ???????????????# #?????????????????? | | ???????????????# #?????????????????? | | ???????????????# ##?????????????????? | | ???????????????## ##??????????????????? | | ????????????????# ## ##??????????????????? | | ????????????????# ##? #??????????????????? | | ????????????????## #??? #??????????????????? | | ?????????????????## ##?? #??????????????????? | | ??????????????????# #??? #??????????????????? | | ??????????????????## ##???# #???????????????????? | | ???????????????????# ##???# #???????????????????? | | ???????????????????# ##### ##??????????????????? | | ?????????????####?## # # # #??????????????????? | | ?????????????# ## #??????????????????? | | ?????????????# ### ## ## #??????????????????? | | ?????????????# #### R #####??????????????????? | | ?????????????# ##????????????????????? | | ??????????????# R ##???????????????????? | | ?????????????## #???????????????????? | | ?????????????# ##??##??????????????? | | ?????????????# ## ##R # ?????????? | | ?????????????# ??## R "??????????? | | ?????????????# ????## =&! #???????????? | | ?????????????### ## & & ## ## # # #??????????? | | ??????????????# &@ ##?##??#??????????????? | | ??????????????# ### ##?????????????????????? | | ??????????????##?????## #??????????????????????? | | ??????????????????????## ??????????????????????? | | ???????????????????????# #??????????????????????? | | ??????????????????????? #??????????????????????? | | ??????????????????????? #??????????????????????? | | ??????????????????????## #??????????????????????? | | ???????????????????????# ??????????????????????? | | ???????????????????????## ??????????????????????? | | ????????????????????????? ??????????????????????? | | ????????????????????????? ??????????????????????? | | ????????????????????????? ??????????????????????? | | ????????????????????????? ??????????????????????? | | ????????????????????????? ??????????????????????? | | ????????????????????????? ??????????????????????? | | ?????????????????????????????????????????????????? | | ?????????????????????????????????????????????????? | | ?????????????????????????????????????????????????? | | ?????????????????????????????????????????????????? | | ?????????????????????????????????????????????????? | | ?????????????????????????????????????????????????? | | ?????????????????????????????????????????????????? | | ?????????????????????????????????????????????????? | | ?????????????????????????????????????????????????? | +----------------------------------------------------+ Best States ------------- Heat Dissipation 35 Energy Generation 14 Energy Capacity 250 Matter Stores 300 Matter Capacity 300 Sight Range 16 Terrain Scan Density 10 Evasion (%) 55 Item Schematics ----------------- None Robot Schematics ------------------ None Fabricated ------------ Nothing Repaired ---------- Nothing Studied --------- None Alien Tech Used ----------------- None Achievements -------------- None Challenges ------------ None Game ------ Seed NetworkedControlCompanion Manual? 0 Play Time 00:07:03 Cumulative 46.4 hours Start 2026.03.04 @ 17:40:40 End 2026.03.04 @ 17:46:05 Sessions 1 Manual Loads 0 Difficulty Rogue Special Mode None Game No. 61 Rogue 61 Adventurer 0 Explorer 0 Win Type - Total 0 Types 0/0/0/0/0/0/0/0/0/0 Lore% 33 Gallery% 32 Achievement% 24 Wizard Run 0 Options --------- Layout 2 ASCII 0 Keyboard 1 Movement Arrows Keybinds 0 Fullscreen 1 Font 24/Smallcaps Map View 50x44 Zoom Use 0% Tactical HUD 1 Map Filters NONE Filters NONE Steam 1 RUN: a55f4a07-31c6-453d-98f6-7a0d7ef6d32f